bitfinex-derivatives/quotes_BTCF0:USTF0_20251202
["timestamp","ask_amount","ask_price","bid_price","bid_amount"]
[1764653556778,0.0668204,86959.0,86958.0,0.41936]
[1764653560974,0.0115,86962.0,86958.0,0.4308604]
[1764653561166,0.0115,86962.0,86961.0,0.05663]
[1764653562263,0.0115,86962.0,86961.0,0.05863]
[1764653562669,0.0359444,86962.0,86961.0,0.05863]
[1764653564484,0.0629844,86962.0,86961.0,0.05863]
[1764653566787,0.0244444,86962.0,86961.0,0.05863]
[1764653567081,0.0001725,86967.0,86966.0,0.0681295]
[1764653567286,0.02466713,86967.0,86966.0,0.4289295]
[1764653567484,0.0001725,86967.0,86966.0,0.4289295]
[1764653567870,0.15724081,86980.0,86979.0,0.05663]
[1764653568075,0.08003674,86980.0,86979.0,0.05663]
[1764653568279,0.27003674,86980.0,86979.0,0.05663]
[1764653568577,0.08003674,86980.0,86979.0,0.0681278]
[1764653568985,0.10003674,86980.0,86979.0,0.0681278]
[1764653569176,0.07154674,86980.0,86979.0,0.0681278]
[1764653569369,0.02450674,86980.0,86979.0,0.0681278]
[1764653569577,0.0001725,86988.0,86987.0,0.0681267]
[1764653570786,0.0670241,87007.0,87006.0,0.05663]
[1764653570990,0.27150095,87007.0,87006.0,0.05663]
[1764653571784,0.49150095,87007.0,87006.0,0.05663]
[1764653573388,0.0670247,87002.0,87001.0,0.3608]
[1764653573590,0.49150155,87002.0,87001.0,0.3608]
[1764653573792,0.49150155,87002.0,87001.0,0.38807]
[1764653573977,0.05553,86999.0,86998.0,0.0001725]
[1764653574181,0.45000685,86999.0,86998.0,0.0001725]
[1764653574383,0.0670282,86976.0,86975.0,0.41743]
[1764653575076,0.05553,86976.0,86975.0,0.41743]
[1764653575592,0.44215,86976.0,86975.0,0.3608]
[1764653575781,0.14215,86976.0,86975.0,0.3608]
[1764653575981,0.52215,86976.0,86975.0,0.3608]
[1764653576182,0.29215,86976.0,86975.0,0.41743]
[1764653577494,0.29215,86976.0,86975.0,0.3608]
[1764653577793,0.31655582,86976.0,86975.0,0.3608]
[1764653580595,0.0670292,86968.0,86967.0,0.4176025]
[1764653580794,0.3270292,86968.0,86967.0,0.4176025]
[1764653581591,0.3270292,86968.0,86967.0,0.4291019]
[1764653582189,0.3270292,86968.0,86967.0,0.4301019]
[1764653582395,0.0670292,86968.0,86967.0,0.4301019]
[1764653584098,0.0670292,86968.0,86967.0,0.4291019]
[1764653584300,0.0670292,86968.0,86967.0,0.4301019]
[1764653584698,0.0670292,86968.0,86967.0,0.4291019]
[1764653584899,0.0670292,86968.0,86967.0,0.4301019]
[1764653585097,0.0670292,86968.0,86967.0,0.4186025]
[1764653586202,0.05553,86968.0,86967.0,0.4186025]
[1764653587200,0.49553,86968.0,86967.0,0.4186025]
[1764653587700,0.51991013,86968.0,86967.0,0.3892425]
[1764653588004,0.51991013,86968.0,86967.0,0.3619725]
[1764653592006,0.51991013,86968.0,86967.0,0.0011725]
[1764653593607,0.51991013,86968.0,86967.0,0.0302225]
[1764653593909,0.51991013,86968.0,86967.0,0.0573625]
[1764653594408,0.25991013,86968.0,86967.0,0.0573625]
[1764653594903,0.07991013,86968.0,86967.0,0.0573625]
[1764653595209,0.09991013,86968.0,86967.0,0.0573625]
[1764653598699,0.34991013,86968.0,86967.0,0.0573625]
[1764653599311,0.03705,86968.0,86967.0,0.0573625]
[1764653599702,0.06609,86968.0,86967.0,0.0573625]
[1764653600412,0.09050022,86968.0,86967.0,0.0573625]
[1764653603410,0.53050022,86968.0,86967.0,0.0573625]
[1764653604903,0.53050022,86968.0,86967.0,0.0011725]
[1764653606617,1.06418022,86968.0,86967.0,0.0011725]
[1764653610017,1.08047022,86968.0,86967.0,0.0011725]
[1764653610411,1.08047022,86968.0,86967.0,0.0302225]
[1764653610620,1.08047022,86968.0,86967.0,0.0573625]
[1764653611220,1.08047022,86968.0,86967.0,0.0011725]
[1764653611415,1.08047022,86968.0,86967.0,0.0302225]
[1764653613324,1.08047022,86968.0,86967.0,0.0011725]
[1764653613528,0.0710207,86957.0,86956.0,0.3608]
[1764653613829,0.0710217,86949.0,86948.0,0.41897213]
[1764653614008,0.54543192,86949.0,86948.0,0.41897213]
[1764653614209,0.62907192,86949.0,86948.0,8.213e-05]
[1764653614426,0.0710228,86941.0,86940.0,0.02911]
[1764653614723,0.0710233,86937.0,86936.0,0.41889]
[1764653615023,0.49543352,86937.0,86936.0,0.41889]
[1764653615522,0.49351565,86937.0,86936.0,0.41889]
[1764653615727,0.16401235,86937.0,86936.0,0.41889]
[1764653616111,0.16401235,86937.0,86936.0,0.42089]
[1764653616414,0.13960213,86937.0,86936.0,0.42089]
[1764653617014,0.05960213,86937.0,86936.0,0.42089]
[1764653617217,0.05960213,86937.0,86936.0,0.42189]
[1764653618933,0.02992213,86937.0,86936.0,0.42189]
[1764653619319,0.05895213,86937.0,86936.0,0.42189]
[1764653621421,8.213e-05,86937.0,86936.0,0.42189]
[1764653622728,0.05902213,86937.0,86936.0,0.42189]
[1764653623118,0.05902213,86937.0,86936.0,0.39291]
[1764653623325,0.05902213,86937.0,86936.0,0.03211]
[1764653623326,0.47902213,86937.0,86936.0,0.03211]
[1764653623534,0.47902213,86937.0,86936.0,0.06001]
[1764653623724,0.50342424,86937.0,86936.0,0.06001]
[1764653624228,0.47902213,86937.0,86936.0,0.06001]
[1764653626422,0.47902213,86937.0,86936.0,0.03211]
[1764653626621,0.47902213,86937.0,86936.0,0.06001]
[1764653627627,0.47902213,86937.0,86936.0,0.03211]
[1764653627824,0.83982213,86937.0,86936.0,0.003]
[1764653628032,0.86420687,86937.0,86936.0,0.003]
[1764653628234,0.86420687,86937.0,86936.0,0.06054]
[1764653629339,0.83982213,86937.0,86936.0,0.06054]
[1764653629536,0.86420221,86937.0,86936.0,0.06054]
[1764653630227,0.86420221,86937.0,86936.0,0.05954]
[1764653630539,0.86420221,86937.0,86936.0,0.05754]
[1764653630725,0.86620221,86937.0,86936.0,0.05754]
[1764653634538,0.50540221,86937.0,86936.0,0.05754]
[1764653635330,0.09540221,86937.0,86936.0,0.05754]
[1764653635732,0.07102213,86937.0,86936.0,0.05754]
[1764653636137,0.09540793,86937.0,86936.0,0.05754]
[1764653640034,0.10691123,86937.0,86936.0,0.05754]
[1764653640629,0.09540793,86937.0,86936.0,0.05754]
[1764653645337,0.52540793,86937.0,86936.0,0.05754]
[1764653645530,0.05663,86931.0,86930.0,0.0698242]
[1764653645726,0.0810158,86931.0,86930.0,0.0698242]
[1764653646743,0.0820158,86931.0,86930.0,0.0698242]
[1764653646946,0.0820158,86931.0,86930.0,0.05832]
[1764653647332,0.0524258,86931.0,86930.0,0.05832]
[1764653647532,0.0820158,86931.0,86930.0,0.05832]
[1764653648447,0.0253858,86931.0,86930.0,0.05832]
[1764653648939,0.001,86931.0,86930.0,0.05832]
[1764653650340,0.001,86931.0,86929.0,0.0115043]
[1764653650341,8.213e-05,86937.0,86936.0,0.05832]
[1764653650736,0.02452883,86937.0,86936.0,0.05832]
[1764653651340,0.08115883,86937.0,86936.0,0.0698235]
[1764653651547,0.10215883,86937.0,86936.0,0.0698235]
[1764653652151,0.14215883,86937.0,86936.0,0.0698235]
[1764653652646,0.08215883,86937.0,86936.0,0.0698235]
[1764653652846,0.05256883,86937.0,86936.0,0.0698235]
[1764653653151,0.00108213,86937.0,86936.0,0.0698235]
[1764653654443,0.02812213,86937.0,86936.0,0.0698235]
[1764653656153,0.00108213,86937.0,86936.0,0.0698235]
[1764653659153,0.0570225,86949.0,86948.0,0.0699919]
[1764653659348,0.02461083,86949.0,86948.0,0.0699919]
[1764653659745,0.05229083,86949.0,86948.0,0.0699919]
[1764653660253,0.02461083,86949.0,86948.0,0.0699919]
[1764653660448,0.08146083,86949.0,86948.0,0.0699919]
[1764653660653,0.08246083,86949.0,86948.0,0.0699919]
[1764653662360,0.05329083,86949.0,86948.0,0.0699919]
[1764653662658,0.08246083,86949.0,86948.0,0.0699919]
[1764653662955,0.15723829,86960.0,86959.0,0.0699904]
[1764653663153,0.0277591,86970.0,86967.0,0.02904]
[1764653663154,0.0683494,86968.0,86967.0,0.02904]
[1764653663351,0.05685,86963.0,86962.0,0.06999]
[1764653663546,0.10126926,86963.0,86962.0,0.06999]
[1764653665358,0.07685,86963.0,86962.0,0.06999]
[1764653666062,0.07785,86963.0,86962.0,0.06999]
[1764653666650,0.29785,86963.0,86962.0,0.06999]
[1764653667357,0.10785,86963.0,86962.0,0.06999]
[1764653668663,0.10685,86963.0,86962.0,0.06999]
[1764653669562,0.05685,86963.0,86962.0,0.06999]
[1764653669755,0.31685,86963.0,86962.0,0.05849]
[1764653670560,0.31685,86963.0,86962.0,0.06999]
[1764653673467,0.26685,86963.0,86962.0,0.06999]
[1764653675666,0.05685,86963.0,86962.0,0.06999]
[1764653677169,0.08123118,86963.0,86962.0,0.06999]
[1764653678274,0.0280525,86971.0,86970.0,0.070059]
[1764653678474,0.05243893,86971.0,86970.0,0.070059]
[1764653678771,0.08054893,86971.0,86970.0,0.070059]
[1764653679164,0.0561625,86971.0,86970.0,0.070059]
[1764653679560,0.0561625,86971.0,86970.0,0.08179695]
[1764653679758,0.0280525,86971.0,86970.0,0.08179695]
[1764653679962,0.0001725,86971.0,86970.0,0.08179695]
[1764653680174,0.05599,86985.0,86984.0,0.0700571]
[1764653680362,0.24037445,86985.0,86984.0,0.0700571]
[1764653681071,0.53706445,86985.0,86984.0,0.05856]
[1764653681470,0.53706445,86985.0,86984.0,0.02893]
[1764653681680,0.53706445,86985.0,86984.0,0.05856]
[1764653682375,0.51268,86985.0,86984.0,0.41936]
[1764653684768,0.524177,86985.0,86984.0,0.41936]
[1764653684975,0.54854508,86985.0,86984.0,0.41936]
[1764653685374,0.54854508,86985.0,86984.0,0.3608]
[1764653686066,0.54854508,86985.0,86984.0,0.41936]
[1764653686266,0.22035808,86985.0,86984.0,0.41936]
[1764653686466,0.16035808,86985.0,86984.0,0.41936]
[1764653686666,0.45035808,86985.0,86984.0,0.41936]
[1764653686867,0.20035808,86985.0,86984.0,0.41936]
[1764653687268,0.50035808,86985.0,86984.0,0.41936]
[1764653688376,0.51704808,86985.0,86984.0,0.41936]
[1764653691363,0.51705606,86985.0,86984.0,0.41936]
[1764653692974,0.44437606,86985.0,86984.0,0.41936]
[1764653693176,0.44437606,86985.0,86984.0,0.43611]
[1764653693177,0.43707603,86985.0,86984.0,0.43611]
[1764653693382,0.0001725,86993.0,86992.0,0.0672]
[1764653693681,0.0001725,86993.0,86992.0,0.4394961]
[1764653694577,0.0001725,86993.0,86992.0,0.9394961]
[1764653694780,0.0001725,86993.0,86992.0,0.9404961]
[1764653695081,0.0001725,86993.0,86992.0,1.4404961]
[1764653695880,0.22990107,87020.0,87019.0,0.05856]
[1764653696090,0.08047892,87020.0,87019.0,0.05856]
[1764653696283,0.05599,87020.0,87019.0,0.05856]
[1764653697085,0.07268,87020.0,87019.0,0.07000544]
[1764653697288,0.05599,87020.0,87019.0,0.07000544]
[1764653697483,0.05599,87020.0,87019.0,0.05856]
[1764653697781,0.07268,87020.0,87019.0,0.05856]
[1764653698368,0.07268,87020.0,87019.0,0.02893]
[1764653698586,0.47268,87020.0,87019.0,0.02893]
[1764653698789,0.47268,87020.0,87019.0,0.05856]
[1764653700575,0.05599,87016.0,87015.0,0.41936]
[1764653700971,0.05599,87016.0,87015.0,0.3608]
[1764653701273,0.05599,87012.0,87011.0,0.05873238]
[1764653701479,0.46599,87012.0,87011.0,0.05873238]
[1764653701681,0.46599,87012.0,87011.0,0.00017238]
[1764653703577,0.4774834,87012.0,87011.0,0.00017238]
[1764653704888,0.4784834,87012.0,87011.0,0.00017238]
[1764653705883,0.4784834,87012.0,87011.0,0.03008238]
[1764653706071,0.4784834,87012.0,87011.0,0.05766238]
[1764653706589,0.4784834,87012.0,87011.0,0.03008238]
[1764653707288,0.50269607,87012.0,87011.0,0.03008238]
[1764653707876,0.50269607,87012.0,87011.0,0.00017238]
[1764653708080,0.02521267,87012.0,87011.0,0.05766238]
[1764653708387,0.001,87012.0,87011.0,0.05766238]
[1764653709982,0.08367378,87028.0,87027.0,0.02991]
[1764653710183,0.28789295,87028.0,87027.0,0.02991]
[1764653710392,0.28789295,87028.0,87027.0,0.05749]
[1764653710795,0.27640155,87028.0,87027.0,0.05749]
[1764653711603,0.07971155,87028.0,87027.0,0.05749]
[1764653711888,0.08071155,87028.0,87027.0,0.05749]
[1764653712290,0.05649238,87028.0,87027.0,0.05749]
[1764653714291,0.02840238,87028.0,87027.0,0.05749]
[1764653714794,0.05649238,87028.0,87027.0,0.05749]
[1764653719002,0.05649238,87028.0,87023.0,0.3608]
[1764653719003,0.05532,87024.0,87023.0,0.3608]
[1764653719202,0.48532,87024.0,87023.0,0.3608]
[1764653719499,0.48532,87024.0,87023.0,0.41829]
[1764653720693,0.48532,87024.0,87023.0,0.39071]
[1764653720993,0.50956218,87024.0,87023.0,0.3608]
[1764653721197,0.50956218,87024.0,87023.0,0.39071]
[1764653721397,0.50956218,87024.0,87023.0,0.02991]
[1764653722686,0.50956218,87024.0,87023.0,0.05749]
[1764653722991,0.50956218,87024.0,87023.0,0.068982]
[1764653725701,0.07956218,87024.0,87023.0,0.429782]
[1764653726590,0.02424218,87024.0,87023.0,0.429782]
[1764653726790,0.07956218,87024.0,87023.0,0.429782]
[1764653734114,0.09105398,87024.0,87023.0,0.41829]
[1764653734302,0.50105398,87024.0,87023.0,0.3608]
[1764653735503,0.50105398,87024.0,87023.0,0.4186]
[1764653736092,0.50105398,87024.0,87023.0,0.3608]
[1764653738002,0.0683928,87017.0,87016.0,0.0692928]
[1764653738306,0.09263498,87017.0,87016.0,0.4300928]
[1764653739297,0.08114218,87017.0,87016.0,0.4300928]
[1764653740308,0.08114218,87017.0,87016.0,0.4186]
[1764653741813,0.47114218,87017.0,87016.0,0.3608]
[1764653742008,0.0683934,87012.0,87011.0,0.00017238]
[1764653742200,0.48263558,87012.0,87011.0,0.00017238]
[1764653744915,0.48363558,87012.0,87011.0,0.00017238]
[1764653745707,0.0683951,86999.0,86998.0,0.4186]
[1764653745900,0.31263728,86999.0,86998.0,0.4186]
[1764653746095,0.31263728,86999.0,86998.0,0.3608]
[1764653746296,0.0683962,86991.0,86990.0,0.39054]
[1764653746516,0.0683962,86991.0,86990.0,0.4186]
[1764653748212,0.4683962,86991.0,86990.0,0.4186]
[1764653749307,0.4683962,86991.0,86990.0,0.3608]
[1764653749918,0.4683962,86991.0,86990.0,0.39054]
[1764653750111,0.4683962,86991.0,86990.0,0.4186]
[1764653751708,0.4683962,86991.0,86990.0,0.3608]
[1764653751911,0.0683973,86983.0,86982.0,0.05797238]
[1764653752100,0.5183973,86983.0,86982.0,0.05797238]
[1764653752712,0.5183973,86983.0,86982.0,0.00017238]
[1764653754916,0.5069,86983.0,86982.0,0.05797238]
[1764653755108,0.0569,86983.0,86982.0,0.05797238]
[1764653764827,0.02898,86983.0,86982.0,0.05797238]
[1764653765326,0.0705366,86988.0,86987.0,0.0691167]
[1764653765528,0.0805366,86988.0,86987.0,0.0691167]
[1764653765716,0.02984,86988.0,86987.0,0.0691167]
[1764653766025,0.05904,86992.0,86991.0,0.0691162]
[1764653766326,0.08332111,86992.0,86991.0,0.0691162]
[1764653766520,0.05904,86992.0,86991.0,0.0691162]
[1764653766722,0.0705353,86998.0,86997.0,0.05762]
[1764653766919,0.37482088,86998.0,86997.0,0.05762]
[1764653767325,0.0876758,86994.0,86993.0,0.41842]
[1764653767629,0.0876758,86994.0,86993.0,0.3608]
[1764653767829,0.55196868,86994.0,86993.0,0.3608]
[1764653768529,0.55196868,86994.0,86986.0,0.39036]
[1764653768530,0.0705367,86987.0,86986.0,0.39036]
[1764653768725,0.49483655,86987.0,86986.0,0.3608]
[1764653769428,0.49483655,86987.0,86986.0,0.39036]
[1764653769616,0.21483655,86987.0,86986.0,0.41842]
[1764653770014,0.08333985,86987.0,86986.0,0.41842]
[1764653770314,0.05413985,86987.0,86986.0,0.41842]
[1764653770513,0.08333985,86987.0,86986.0,0.41842]
[1764653774727,0.02429985,86987.0,86986.0,0.41842]
[1764653775323,0.02708,86995.0,86994.0,0.0770258]
[1764653775518,0.06729768,86999.0,86998.0,0.05617]
[1764653775723,0.40167476,86999.0,86998.0,0.05617]
[1764653777720,0.40167476,86999.0,86993.0,0.3608]
[1764653777721,0.0841158,86994.0,86993.0,0.3608]
[1764653777919,0.0114967,86987.0,86986.0,0.3608]
[1764653778124,0.4471267,86987.0,86986.0,0.3608]
[1764653778333,0.47150378,86987.0,86986.0,0.3608]
[1764653779135,0.0671273,86983.0,86982.0,0.00017238]
[1764653779332,0.54150438,86983.0,86982.0,0.00017238]
[1764653781226,0.54150438,86983.0,86982.0,0.02771238]
[1764653781424,1.07498438,86983.0,86982.0,0.05634238]
[1764653782235,1.07502438,86983.0,86982.0,0.05634238]
[1764653783639,1.07502438,86983.0,86982.0,0.00017238]
[1764653785543,1.07502438,86983.0,86982.0,0.02771238]
[1764653786238,0.54150438,86983.0,86982.0,0.05634238]
[1764653786544,0.08000708,86983.0,86982.0,0.05634238]
[1764653786839,0.38000708,86983.0,86982.0,0.05634238]
[1764653790340,0.38002632,86983.0,86982.0,0.05634238]
[1764653791141,0.08002632,86983.0,86982.0,0.07094238]
[1764653793348,0.13002632,86983.0,86982.0,0.05634238]
[1764653793938,0.08002632,86983.0,86982.0,0.05634238]
[1764653794644,0.07411,86994.0,86993.0,0.05876]
[1764653794850,0.46850962,86994.0,86993.0,0.05876]
[1764653795245,0.46850962,86994.0,86993.0,0.02983]
[1764653796054,0.05712,86989.0,86988.0,0.0702566]
[1764653796350,0.08151962,86989.0,86988.0,0.0702566]
[1764653798148,0.0856466,86988.0,86987.0,0.3608]
[1764653798336,0.54004622,86988.0,86987.0,0.3608]
[1764653802541,0.05635,86983.0,86982.0,0.02988238]
[1764653802742,0.47074962,86983.0,86982.0,0.02988238]
[1764653803042,0.47074962,86983.0,86982.0,0.04137978]
[1764653803348,0.47074962,86983.0,86982.0,0.07011978]
[1764653805957,0.47074962,86983.0,86982.0,0.00017238]
[1764653806753,0.47074962,86983.0,86982.0,0.02988238]
[1764653807238,0.47074962,86983.0,86982.0,0.05862238]
[1764653810653,0.47074962,86983.0,86982.0,0.02988238]
[1764653811356,0.47074962,86983.0,86982.0,0.00017238]
[1764653813242,0.47074962,86983.0,86982.0,0.02988238]
[1764653814054,0.47074962,86983.0,86982.0,0.00017238]
[1764653815642,0.08074962,86983.0,86982.0,0.05862238]
[1764653815854,0.52074962,86983.0,86982.0,0.02988238]
[1764653816052,0.52074962,86983.0,86982.0,0.05862238]
[1764653816663,0.25074962,86983.0,86982.0,0.05862238]
[1764653817848,0.08074962,86983.0,86982.0,0.05862238]
[1764653818044,0.02439962,86983.0,86982.0,0.05862238]
[1764653818248,0.05635,86988.0,86987.0,0.05845]
[1764653818448,0.27067692,86988.0,86987.0,0.0699467]
[1764653818748,0.46067692,86988.0,86987.0,0.0699467]
[1764653818953,0.05635,86983.0,86982.0,0.02988238]
[1764653819154,0.50067692,86983.0,86982.0,0.05862238]
[1764653819965,0.02432692,86983.0,86982.0,0.05862238]
[1764653820262,0.05635,86990.0,86989.0,0.0699465]
[1764653820568,0.08048834,86990.0,86989.0,0.0699465]
[1764653821256,0.02413834,86990.0,86989.0,0.0699465]
[1764653821459,0.00017238,86999.0,86998.0,0.0699453]
[1764653821666,0.02430834,86999.0,86998.0,0.4307453]
[1764653821963,0.00017238,86999.0,86998.0,0.4307453]
[1764653822563,0.05856238,86999.0,86998.0,0.4307453]
[1764653825552,0.02856238,86999.0,86998.0,0.4307453]
[1764653826768,0.00017238,86999.0,86998.0,0.4307453]
[1764653826968,0.0578,87019.0,87018.0,0.0658226]
[1764653827164,0.31188674,87019.0,87018.0,0.0658226]
[1764653827865,0.31188674,87019.0,87018.0,0.05433]
[1764653829371,0.2878,87019.0,87018.0,0.05433]
[1764653829667,0.2992925,87019.0,87018.0,0.05433]
[1764653831661,0.2992925,87019.0,87018.0,0.02732]
[1764653832274,0.2992925,87019.0,87010.0,0.00017238]
[1764653832275,0.0578,87011.0,87010.0,0.02749238]
[1764653832462,0.2992936,87011.0,87010.0,0.00017238]
[1764653832662,0.2992936,87011.0,87010.0,0.05450238]
[1764653834168,0.2992936,87011.0,87010.0,0.00017238]
[1764653835468,0.32334738,87011.0,87010.0,0.00017238]
[1764653839180,0.32434738,87011.0,87010.0,0.00017238]
[1764653854380,0.32434738,87011.0,86992.0,0.01677]
[1764653854381,0.05809,86991.0,86983.0,0.3608]
[1764653854586,1.00542378,86991.0,86983.0,0.3608]
[1764653854784,1.00542378,86991.0,86990.0,0.41756]
[1764653855673,1.00542378,86991.0,86990.0,0.41856]
[1764653857380,1.00642378,86991.0,86990.0,0.38862]
[1764653857586,1.00642378,86991.0,86990.0,0.3608]
[1764653857981,1.00742378,86991.0,86990.0,0.3608]
[1764653858890,0.0695873,86983.0,86982.0,0.05693238]
[1764653859089,0.4595873,86983.0,86982.0,0.05693238]
[1764653859390,0.48386324,86983.0,86982.0,0.05693238]
[1764653859585,0.48386324,86983.0,86982.0,0.00017238]
[1764653859586,1.01718324,86983.0,86982.0,0.00017238]
[1764653861487,1.01918324,86983.0,86982.0,0.00017238]
[1764653861975,1.01818324,86983.0,86982.0,0.00017238]
[1764653862180,1.02018324,86983.0,86982.0,0.00017238]
[1764653866081,1.38098324,86983.0,86982.0,0.00017238]
[1764653868790,0.84766324,86983.0,86982.0,0.05693238]
[1764653868992,1.38110324,86983.0,86982.0,0.05693238]
[1764653869684,1.02030324,86983.0,86982.0,0.05693238]
[1764653872289,0.9960273,86983.0,86982.0,0.05693238]
[1764653872786,0.4625873,86983.0,86982.0,0.05693238]
[1764653872983,0.9960273,86983.0,86982.0,0.05693238]
[1764653873784,0.9960273,86983.0,86982.0,0.00017238]
[1764653873994,1.02026258,86983.0,86982.0,0.00017238]
[1764653876092,1.02026258,86983.0,86982.0,0.05693238]
[1764653878304,1.02026258,86983.0,86982.0,0.00017238]
[1764653888121,1.02026258,86983.0,86982.0,0.05498238]
[1764653888711,1.02030258,86983.0,86982.0,0.05498238]
[1764653889108,1.00880528,86983.0,86982.0,0.06647978]
[1764653890007,0.61880528,86983.0,86982.0,0.06647978]
[1764653890619,0.05571528,86983.0,86982.0,0.06647978]
[1764653890823,0.02723528,86983.0,86982.0,0.06647978]
[1764653891027,0.00265524,86983.0,86982.0,0.46647978]
[1764653891927,0.002,86983.0,86982.0,0.46647978]
[1764653892318,0.1868254,86992.0,86991.0,0.0663062]
[1764653892626,0.0540099,86992.0,86991.0,0.4271062]
[1764653893024,0.02964,86992.0,86991.0,0.4271062]
[1764653893225,0.05849,86992.0,86991.0,0.4271062]
[1764653893726,0.05849,86992.0,86991.0,0.41561]
[1764653894509,0.05849,86992.0,86991.0,0.3608]
[1764653894723,0.46284753,86992.0,86991.0,0.3608]
[1764653896122,0.46484753,86992.0,86991.0,0.3608]
[1764653896823,0.46584753,86992.0,86991.0,0.3608]
[1764653900924,0.46584753,86992.0,86991.0,0.38858]
[1764653901128,0.46584753,86992.0,86991.0,0.41561]
[1764653902123,0.46584753,86992.0,86991.0,0.05481]
[1764653903324,0.05849,86983.0,86982.0,0.05498238]
[1764653903530,0.51284753,86983.0,86982.0,0.05498238]
[1764653906028,0.51384753,86983.0,86982.0,0.00017238]
[1764653908222,0.51484753,86983.0,86982.0,0.00017238]
[1764653908729,0.51584753,86983.0,86982.0,0.00017238]
[1764653909239,0.51384753,86983.0,86982.0,0.00017238]
[1764653909425,0.51584753,86983.0,86982.0,0.00017238]
[1764653909841,0.51384753,86983.0,86982.0,0.00017238]
[1764653910038,0.51584753,86983.0,86982.0,0.00017238]
[1764653910945,0.51484753,86983.0,86982.0,0.00017238]
[1764653911236,0.22584753,86983.0,86982.0,0.05579238]
[1764653911540,0.22384753,86983.0,86982.0,0.05579238]
[1764653911845,0.22584753,86983.0,86982.0,0.05579238]
[1764653912738,0.22384753,86983.0,86982.0,0.05579238]
[1764653912939,0.22584753,86983.0,86982.0,0.05579238]
[1764653913145,0.22484753,86983.0,86982.0,0.05579238]
[1764653913351,0.22584753,86983.0,86982.0,0.05579238]
[1764653913644,0.45584753,86983.0,86982.0,0.00017238]
[1764653914342,0.98928753,86983.0,86982.0,0.00017238]
[1764653922858,0.98828753,86983.0,86982.0,0.00017238]
[1764653923851,0.98628753,86983.0,86982.0,0.00017238]
[1764653924054,0.98828753,86983.0,86982.0,0.00017238]
[1764653924549,1.34908753,86983.0,86982.0,0.02815238]
[1764653924851,1.34908753,86983.0,86982.0,0.05516238]
[1764653925247,1.35008753,86983.0,86982.0,0.05516238]
[1764653925444,0.81664753,86983.0,86982.0,0.05516238]
[1764653925638,0.41584753,86983.0,86982.0,0.05516238]
[1764653925835,0.69928753,86983.0,86982.0,0.05516238]
[1764653927046,0.69728753,86983.0,86982.0,0.05516238]
[1764653927247,0.69928753,86983.0,86982.0,0.05516238]
[1764653927551,0.69828753,86983.0,86982.0,0.05516238]
[1764653927751,0.69728753,86983.0,86982.0,0.05516238]
[1764653934747,1.03728753,86983.0,86982.0,0.02815238]
[1764653934949,0.78728753,86983.0,86982.0,0.02815238]
[1764653935456,0.25384753,86983.0,86982.0,0.05516238]
[1764653937956,0.08384753,86983.0,86982.0,0.05516238]
[1764653942963,0.14384753,86983.0,86982.0,0.05516238]
[1764653943170,0.51384753,86983.0,86982.0,0.00017238]
[1764653944359,0.51384753,86983.0,86982.0,0.02751238]
[1764653944758,0.08384753,86983.0,86982.0,0.05452238]
[1764653948469,0.50384753,86983.0,86982.0,0.00017238]
[1764653948771,0.50384753,86983.0,86982.0,0.05452238]
[1764653949166,0.50384753,86983.0,86982.0,0.00017238]
[1764653952558,0.0658495,86966.0,86965.0,0.02734]
[1764653952866,0.09020703,86966.0,86965.0,0.02734]
[1764653953168,0.09020703,86966.0,86965.0,0.05435]
[1764653953969,0.09020703,86966.0,86965.0,0.05635]
[1764653954169,0.07870753,86966.0,86965.0,0.05635]
[1764653955172,0.07870753,86966.0,86965.0,0.41715]
[1764653955760,0.07870753,86966.0,86965.0,0.41515]
[1764653959989,0.07870753,86966.0,86965.0,0.43029]
[1764653960279,0.05435,86966.0,86965.0,0.43029]
[1764653960878,0.02711,86966.0,86965.0,0.43029]
[1764653961776,0.05435,86966.0,86965.0,0.43029]
[1764653961969,0.05435,86966.0,86965.0,0.41515]
[1764653963276,0.48435,86966.0,86965.0,0.41515]
[1764653963577,0.50869263,86966.0,86965.0,0.41515]
[1764653964477,0.48435,86966.0,86965.0,0.41515]
[1764653966577,0.50868019,86966.0,86965.0,0.41515]
[1764653967772,0.50868019,86966.0,86965.0,0.3608]
[1764653968079,0.0658506,86958.0,86957.0,0.05452248]
[1764653968271,0.2958506,86958.0,86957.0,0.05452248]
[1764653969270,0.05435,86958.0,86957.0,0.05452248]
[1764653970083,0.06585,86963.0,86957.0,0.00017248]
[1764653970381,0.07870243,86962.0,86957.0,0.00017248]
[1764653970578,0.07870243,86961.0,86960.0,0.05435]
[1764653970772,0.51870243,86961.0,86960.0,0.05435]
[1764653971883,0.51970243,86961.0,86960.0,0.05435]
[1764653972080,0.05535,86961.0,86960.0,0.07127]
[1764653972273,0.001,86961.0,86960.0,0.07127]
[1764653973285,0.001,86961.0,86960.0,0.43207]
[1764653974190,0.06809108,86974.0,86973.0,0.05784]
[1764653974386,0.45244012,86974.0,86973.0,0.05784]
[1764653974977,0.45244012,86974.0,86973.0,0.0693386]
[1764653975883,0.05642,86971.0,86970.0,0.41864]
[1764653976084,0.50076904,86971.0,86970.0,0.41864]
[1764653976686,0.50076904,86971.0,86970.0,0.430139]
[1764653977386,0.50176904,86971.0,86970.0,0.430139]
[1764653977689,0.08176904,86971.0,86970.0,0.430139]
[1764653979290,0.48176904,86971.0,86970.0,0.41864]
[1764653979493,0.48176904,86971.0,86970.0,0.430139]
[1764653981492,0.48176904,86971.0,86970.0,0.069339]
[1764653982882,0.48176904,86971.0,86959.0,0.02879]
[1764653982883,0.0253903,86960.0,86959.0,0.02879]
[1764653983078,0.05642,86958.0,86957.0,0.00017248]
[1764653983279,0.49078843,86958.0,86957.0,0.00017248]
[1764653983997,0.48978843,86958.0,86957.0,0.00017248]
[1764653984693,0.48978843,86958.0,86957.0,0.00117248]
[1764653985184,0.48978843,86958.0,86957.0,0.00017248]
[1764653989202,0.05642,86948.0,86947.0,0.00013579]
[1764653989391,0.53229033,86948.0,86947.0,0.00013579]
[1764653990286,0.53229033,86948.0,86947.0,0.00113579]
[1764653992406,0.5079219,86948.0,86947.0,0.00113579]
[1764653992906,0.53225397,86948.0,86947.0,0.00113579]
[1764653994998,0.89305397,86948.0,86947.0,0.00113579]
[1764654000014,0.0679237,86934.0,86933.0,0.41864]
[1764654000225,0.4379237,86934.0,86933.0,0.3608]
[1764654000509,0.05642,86924.0,86923.0,0.41864]
[1764654000900,0.05642,86924.0,86923.0,0.43027614]
[1764654000901,0.05653646,86924.0,86923.0,0.43027614]
[1764654001111,0.02921646,86924.0,86923.0,0.43027614]
[1764654001611,0.02621646,86924.0,86923.0,0.33027614]